bitfinex/quotes_SOLUSD_20250210
["timestamp","ask_amount","ask_price","bid_price","bid_amount"]
[1739158375571,19.10953938,202.64,202.6,20.0]
[1739158375750,19.10953938,202.62,202.6,20.0]
[1739158376143,19.10953938,202.64,202.6,20.0]
[1739158376365,0.149,202.68,202.61,3.9484]
[1739158376366,19.10953938,202.66,202.61,3.9484]
[1739158376570,19.25853938,202.68,202.63,20.0]
[1739158376751,19.25853938,202.68,202.64,13.41184853]
[1739158376949,0.149,202.68,202.64,14.1518031]
[1739158377170,0.149,202.68,202.67,20.0]
[1739158377345,0.089,202.68,202.67,20.0]
[1739158377547,0.089,202.68,202.67,20.7399005]
[1739158377742,19.10953938,202.78,202.68,0.25098]
[1739158378068,19.10953938,202.8,202.75,20.0]
[1739158378443,19.10953938,202.81,202.77,20.0]
[1739158378647,19.10953938,202.82,202.77,20.0]
[1739158378844,19.10953938,202.82,202.78,14.15134353]
[1739158379074,19.10953938,202.82,202.78,0.739495]
[1739158379272,19.10953938,202.8,202.78,0.739495]
[1739158379651,19.10953938,202.79,202.74,26.31196353]
[1739158379864,19.10953938,202.8,202.74,26.31196353]
[1739158380266,19.10953938,202.85,202.78,20.0]
[1739158380475,19.10953938,202.85,202.79,23.05443938]
[1739158380770,19.10953938,202.94,202.86,20.0]
[1739158380950,19.10953938,202.96,202.91,20.0]
[1739158381473,19.10953938,202.92,202.89,0.73905255]
[1739158381779,19.10953938,203.03,202.93,20.0]
[1739158382068,19.10953938,203.01,202.99,20.0]
[1739158382372,1.0,203.15,202.97,20.0]
[1739158382556,1.0,203.07,202.98,0.7386586]
[1739158382872,1.0,203.02,202.94,1.0]
[1739158383053,19.10953938,202.95,202.89,3.943]
[1739158383275,19.10953938,202.9,202.86,3.9434]
[1739158383756,19.10953938,202.96,202.9,20.0]
[1739158383958,19.10953938,202.94,202.9,20.0]
[1739158384150,1.0,203.06,202.9,20.0]
[1739158384151,19.10953938,202.96,202.91,0.73911026]
[1739158384348,19.10953938,202.96,202.92,20.0]
[1739158384555,19.10953938,202.96,202.93,4.68107134]
[1739158384756,19.10953938,202.96,202.93,3.9422]
[1739158385456,19.10953938,203.02,202.98,20.0]
[1739158385663,19.10953938,203.1,202.98,20.0]
[1739158385664,19.10953938,203.04,203.0,20.0]
[1739158385864,19.10953938,203.1,203.0,20.0]
[1739158386077,19.10953938,203.05,203.01,0.7386391]
[1739158386464,19.10953938,203.03,203.01,0.7386391]
[1739158386768,19.10953938,203.03,203.0,3.9407]
[1739158386971,19.10953938,203.01,203.0,3.9407]
[1739158387360,19.10953938,203.07,203.04,20.0]
[1739158387669,12.48346889,203.19,203.06,20.0]
[1739158387670,19.10953938,203.13,203.06,20.0]
[1739158387874,19.10953938,203.15,203.08,20.0]
[1739158388055,12.48346889,203.19,203.12,20.0]
[1739158388259,19.10953938,203.25,203.18,20.0]
[1739158388583,19.10953938,203.27,203.23,20.0]
[1739158389151,19.10953938,203.28,203.24,20.0]
[1739158389352,1.0,203.38,203.22,0.73783514]
[1739158389353,19.10953938,203.26,203.22,0.73783514]
[1739158389659,19.10953938,203.26,203.22,20.73783514]
[1739158389854,19.10953938,203.3,203.24,20.0]
[1739158390063,19.10953938,203.3,203.25,0.73777362]
[1739158390457,19.10953938,203.36,203.32,20.0]
[1739158390666,19.10953938,203.38,203.33,0.73757686]
[1739158390981,19.10953938,203.4,203.34,20.0]
[1739158391289,19.10953938,203.42,203.36,20.0]
[1739158391468,19.10953938,203.42,203.37,0.73729008]
[1739158391787,19.10953938,203.38,203.37,20.73729008]
[1739158391951,19.10953938,203.4,203.37,20.73729008]
[1739158392155,19.10953938,203.42,203.38,20.0]
[1739158392455,19.10953938,203.46,203.43,20.0]
[1739158392868,19.10953938,203.48,203.44,0.73711778]
[1739158393078,19.10953938,203.46,203.44,0.73711778]
[1739158393283,19.10953938,203.46,203.43,20.73703894]
[1739158393486,19.10953938,203.44,203.43,20.0]
[1739158393784,1.0,203.57,203.43,20.0]
[1739158393785,19.10953938,203.46,203.43,20.0]
[1739158393985,19.10953938,203.48,203.43,332.73706428]
[1739158394293,24.03883938,203.6,203.47,20.0]
[1739158394294,19.10953938,203.52,203.47,20.0]
[1739158394459,19.10953938,203.52,203.48,20.73687799]
[1739158394784,19.10953938,203.49,203.48,20.73687799]
[1739158394964,19.10953938,203.49,203.43,3.9324]
[1739158395163,19.10953938,203.46,203.44,0.73701047]
[1739158395493,19.10953938,203.46,203.42,20.73708661]
[1739158395788,19.10953938,203.43,203.35,4.67125582]
[1739158395962,19.10953938,203.37,203.35,0.73725582]
[1739158396159,19.10953938,203.37,203.26,1.0]
[1739158396160,19.10953938,203.36,203.3,4.67244632]
[1739158396365,19.10953938,203.38,203.3,23.7819857]
[1739158396566,19.10953938,203.43,203.36,19.10953938]
[1739158396776,19.10953938,203.45,203.43,20.0]
[1739158396978,19.10953938,203.47,203.43,20.0]
[1739158397189,19.10953938,203.45,203.43,20.0]
[1739158397496,19.10953938,203.45,203.37,1.0]
[1739158397497,19.10953938,203.5,203.45,20.0]
[1739158397668,19.10953938,203.5,203.38,0.73706923]
[1739158397869,19.10953938,203.43,203.38,0.73706923]
[1739158398071,3.9294,203.59,203.42,20.0]
[1739158398272,1.0,203.58,203.43,20.73695706]
[1739158398582,3.9294,203.59,203.44,23.9323]
[1739158398756,0.12549,203.58,203.44,23.9323]
[1739158398963,1.0,203.52,203.39,0.89904686]
[1739158399192,1.0,203.54,203.38,0.73731638]
[1739158399193,19.10953938,203.4,203.38,0.73731638]
[1739158399497,19.10953938,203.48,203.42,20.0]
[1739158399663,20.10953938,203.6,203.48,20.0]
[1739158399664,19.10953938,203.52,203.48,20.0]
[1739158399861,19.10953938,203.54,203.49,0.73685635]
[1739158400060,19.10953938,203.56,203.5,20.0]
[1739158400304,19.10953938,203.56,203.52,20.0]
[1739158400596,6.0741,203.67,203.52,20.0]
[1739158400597,19.10953938,203.54,203.52,23.9307]
[1739158400763,19.10953938,203.54,203.52,3.9307]
[1739158401067,19.10953938,203.54,203.52,23.9307]
[1739158401497,19.10953938,203.58,203.56,20.0]
[1739158401664,19.10953938,203.6,203.57,0.73654812]
[1739158402168,19.10953938,203.58,203.57,0.73654812]
[1739158402362,19.10953938,203.58,203.53,0.73656807]
[1739158402566,19.10953938,203.6,203.48,13.7604]
[1739158402567,19.10953938,203.54,203.48,13.7604]
[1739158402814,19.10953938,203.52,203.49,0.73676995]
[1739158402985,19.10953938,203.52,203.51,20.0]
[1739158403289,19.10953938,203.52,203.46,3.9318]
[1739158403599,24.03883938,203.6,203.47,0.73702554]
[1739158403600,19.10953938,203.48,203.47,0.73702554]
[1739158403895,19.10953938,203.5,203.46,4.66874412]
[1739158404186,19.10953938,203.54,203.47,0.25098]
[1739158404487,19.10953938,203.62,203.57,0.12549]
[1739158404678,19.10953938,203.66,203.64,20.0]
[1739158404991,19.10953938,203.68,203.64,20.73630544]
[1739158405169,19.10953938,203.7,203.65,30.47632219]
[1739158405489,19.10953938,203.66,203.65,30.47632219]
[1739158405666,19.10953938,203.66,203.62,0.7363109]
[1739158405865,19.10953938,203.64,203.62,0.7363109]
[1739158406190,19.10953938,203.64,203.61,3.929]
[1739158406497,19.10953938,203.62,203.6,0.73637702]
[1739158406700,19.10953938,203.62,203.61,20.0]
[1739158407082,19.10953938,203.66,203.61,20.0]
[1739158407393,19.10953938,203.9,203.61,20.0]
[1739158407394,19.10953938,203.7,203.65,20.0]
[1739158407600,19.10953938,203.72,203.66,0.73624956]
[1739158407784,19.10953938,203.72,203.67,20.0]
[1739158407972,19.10953938,203.74,203.69,20.0]
[1739158408169,19.10953938,203.72,203.69,20.0]
[1739158408570,19.10953938,203.72,203.7,3.9273]
[1739158408888,38.21907876,203.71,203.65,3.9282]
[1739158409085,19.10953938,203.66,203.6,0.7363738]
[1739158409290,19.10953938,203.61,203.56,3.93]
[1739158409602,19.10953938,203.58,203.55,0.736443]
[1739158409790,19.10953938,203.56,203.49,0.73668955]
[1739158410108,19.10953938,203.71,203.54,20.0]
[1739158410109,19.10953938,203.59,203.54,20.0]
[1739158410403,19.10953938,203.63,203.55,49.74]
[1739158410575,19.10953938,203.63,203.56,19.84605033]
[1739158410773,19.10953938,203.57,203.51,0.73644789]
[1739158410972,19.10953938,203.57,203.52,3.9308]
[1739158411177,19.10953938,203.61,203.53,0.73669039]
[1739158411401,19.10953938,203.59,203.53,0.73669039]
[1739158411711,19.10953938,203.59,203.55,20.0]
[1739158411913,19.10953938,203.59,203.57,20.0]
[1739158412112,19.10953938,203.63,203.59,0.25098]
[1739158412310,19.10953938,203.67,203.6,0.73637712]
[1739158412476,19.10953938,203.71,203.65,20.0]
[1739158412840,19.10953938,203.75,203.69,20.0]
[1739158413109,19.10953938,203.77,203.71,20.0]
[1739158413300,19.10953938,203.75,203.71,20.0]
[1739158413812,19.10953938,203.72,203.68,3.9277]
[1739158414014,19.10953938,203.74,203.69,0.73622099]
[1739158414222,19.10953938,203.8,203.72,20.0]
[1739158414416,20.10953938,203.9,203.73,0.73595925]
[1739158414417,19.10953938,203.78,203.73,0.73595925]
[1739158414589,1.0,203.88,203.73,0.73595925]
[1739158414590,19.10953938,203.8,203.74,23.9265]
[1739158414795,19.10953938,203.8,203.75,0.73592677]
[1739158415007,19.10953938,203.76,203.75,0.73592677]
[1739158415219,19.10953938,203.82,203.75,49.58552957]
[1739158415426,19.10953938,203.82,203.78,20.0]
[1739158415723,19.10953938,203.8,203.78,20.0]
[1739158415921,19.10953938,203.8,203.75,0.73599019]
[1739158416092,19.10953938,203.8,203.77,20.0]
[1739158416297,19.10953938,203.78,203.75,0.73599019]
[1739158416499,19.10953938,203.76,203.74,3.9265]
[1739158416793,19.10953938,203.76,203.67,0.73599021]
[1739158416993,19.10953938,203.69,203.61,3.929]
[1739158417218,1.0,203.78,203.61,3.929]
[1739158417219,19.10953938,203.64,203.61,3.929]
[1739158417402,19.10953938,203.7,203.54,5.82]
[1739158417403,19.10953938,203.62,203.59,3.9293]
[1739158417608,19.10953938,203.62,203.52,6.475]
[1739158417609,2.0513145,203.6,203.57,3.9297]
[1739158417812,6.5927,203.75,203.57,3.9297]
[1739158417813,19.10953938,203.68,203.6,29.74]
[1739158418014,19.10953938,203.75,203.67,19.10953938]
[1739158418213,19.10953938,203.75,203.7,20.0]
[1739158418591,0.03,203.76,203.72,23.9269]
[1739158418789,0.03,203.76,203.75,20.0]
[1739158419213,0.03,203.76,203.72,3.9269]
[1739158419410,19.10953938,203.74,203.72,3.9269]
[1739158419611,19.10953938,203.74,203.73,4.965]
[1739158419916,19.13953938,203.76,203.72,3.9269]
[1739158420119,19.10953938,203.74,203.64,0.73611304]
[1739158420296,19.10953938,203.65,203.63,3.9285]
[1739158420501,19.10953938,203.65,203.58,3.9296]
[1739158420712,19.10953938,203.63,203.58,3.9296]
[1739158420903,13.53733853,203.76,203.58,3.9296]
[1739158420904,19.10953938,203.69,203.61,19.10953938]
[1739158421201,19.10953938,203.76,203.68,19.10953938]
[1739158421506,19.10953938,203.76,203.69,0.73610705]
[1739158421710,19.10953938,203.74,203.71,20.0]
[1739158422092,19.10953938,203.72,203.63,9.8214]
[1739158422297,19.10953938,203.66,203.62,0.89803134]
[1739158422601,19.10953938,203.64,203.55,0.73646018]
[1739158422906,19.10953938,203.63,203.55,0.73646018]
[1739158423117,19.10953938,203.61,203.56,3.93]
[1739158423321,20.10953938,203.7,203.56,3.93]
[1739158423322,19.10953938,203.57,203.56,3.93]
[1739158423514,19.10953938,203.57,203.53,0.063]
[1739158423819,19.10953938,203.54,203.53,0.063]
[1739158424001,20.10953938,203.54,203.53,0.063]
[1739158424525,19.10953938,203.54,203.53,0.063]
[1739158424815,19.10953938,203.58,203.53,20.063]
[1739158425017,1e-08,203.6,203.55,20.0]
[1739158425350,19.10953938,203.65,203.6,20.0]
[1739158425516,19.10953938,203.67,203.62,20.0]
[1739158425705,19.10953938,203.65,203.62,20.0]
[1739158425902,19.10953938,203.63,203.62,20.0]
[1739158426096,19.10953938,203.69,203.64,20.0]
[1739158426519,19.10953938,203.71,203.64,20.0]
[1739158426730,19.10953938,203.74,203.66,19.10953938]
[1739158426896,19.10953938,203.72,203.64,19.10953938]
[1739158427223,19.10953938,203.76,203.67,19.10953938]
[1739158427394,19.10953938,203.8,203.71,19.10953938]
[1739158427598,19.10953938,203.8,203.71,19.84556195]
[1739158427997,19.10953938,203.8,203.72,3.9269]
[1739158428195,19.10953938,203.8,203.73,19.84553436]
[1739158428399,19.10953938,203.8,203.73,0.73599498]
[1739158428622,19.10953938,203.78,203.72,0.73600834]
[1739158428930,19.10953938,203.82,203.73,19.10953938]
[1739158429099,19.10953938,203.84,203.75,19.10953938]
[1739158429301,19.10953938,203.84,203.7,32.85503938]
[1739158429302,19.10953938,203.88,203.82,20.0]
[1739158429506,19.10953938,203.9,203.82,20.0]
[1739158429820,19.10953938,203.86,203.79,19.10953938]
[1739158430025,1.0,203.93,203.8,3.9254]
[1739158430026,19.10953938,203.88,203.8,3.9254]
[1739158430208,19.10953938,203.88,203.76,40.29125328]
[1739158430209,19.10953938,203.82,203.76,0.73585328]
[1739158430410,19.10953938,203.77,203.74,3.9265]
[1739158430614,19.10953938,203.77,203.69,19.10953938]
[1739158430615,19.10953938,203.77,203.72,3.9269]
[1739158430800,19.10953938,203.77,203.72,20.0]
[1739158431199,19.10953938,203.73,203.65,23.03773938]
[1739158431401,19.10953938,203.77,203.71,19.10953938]
[1739158431712,19.10953938,203.77,203.69,19.10953938]
[1739158432109,19.10953938,203.75,203.67,19.10953938]
[1739158432417,19.10953938,203.73,203.67,29.74]
[1739158432612,19.10953938,203.71,203.64,3.9284]
[1739158432927,19.10953938,203.67,203.62,3.9288]
[1739158433119,32.84853938,203.8,203.6,0.063]
[1739158433120,19.10953938,203.71,203.63,19.84605958]
[1739158433335,19.10953938,203.75,203.67,19.10953938]
[1739158433505,19.10953938,203.77,203.69,19.10953938]
[1739158433708,19.10953938,203.75,203.68,29.74]
[1739158434105,19.10953938,203.75,203.67,19.10953938]
[1739158434421,19.10953938,203.77,203.72,20.0]
[1739158434609,19.10953938,203.81,203.74,29.74]
[1739158434808,19.10953938,203.81,203.68,13.41184853]
[1739158434809,19.10953938,203.83,203.76,29.74]
[1739158435016,1.0,203.92,203.8,19.10953938]
[1739158435017,19.10953938,203.87,203.8,19.10953938]
[1739158435340,19.10953938,203.87,203.8,48.84953938]
[1739158435724,19.10953938,203.86,203.8,29.74]
[1739158435924,19.10953938,203.84,203.78,29.74]
[1739158436127,19.10953938,203.89,203.82,3.925]
[1739158436324,19.10953938,203.89,203.73,1.12549]
[1739158436325,19.10953938,203.83,203.77,3.9258]
[1739158436637,19.10953938,203.9,203.77,3.9258]
[1739158436939,19.10953938,203.88,203.81,48.84953938]
[1739158437238,19.10953938,203.85,203.78,19.84521727]
[1739158437422,19.10953938,203.84,203.78,0.73567789]
[1739158437625,19.10953938,203.82,203.77,3.9258]
[1739158437950,19.10953938,203.82,203.67,1.6086]
[1739158437951,19.10953938,203.78,203.69,3.9275]
[1739158438126,19.10953938,203.71,203.62,19.10953938]
[1739158438332,19.10953938,203.69,203.63,3.9286]
[1739158438523,19.10953938,203.67,203.6,3.9921]
[1739158438715,19.10953938,203.8,203.6,3.9921]
[1739158438716,19.10953938,203.69,203.62,19.10953938]
[1739158438911,19.10953938,203.71,203.62,19.8459048]
[1739158439135,1.0,203.78,203.62,19.8459048]
[1739158439136,19.10953938,203.79,203.73,20.0]
[1739158439344,19.10953938,203.75,203.69,29.74]
[1739158439537,19.10953938,203.73,203.64,19.10953938]
[1739158439713,19.10953938,203.69,203.63,0.89798724]
[1739158440042,19.10953938,203.71,203.63,30.47646584]
[1739158440243,1.0,203.78,203.63,29.74]
[1739158440244,19.10953938,203.67,203.63,29.74]
[1739158440429,19.10953938,203.65,203.6,0.063]
[1739158440746,19.10953938,203.61,203.6,0.063]
[1739158440953,1.0,203.58,203.49,3.9313]
[1739158441244,1.0,203.58,203.46,9.8296]
[1739158441245,19.10953938,203.54,203.41,0.73687995]
[1739158441442,19.10953938,203.54,203.42,3.9326]
[1739158441648,19.10953938,203.53,203.42,3.9326]
[1739158441853,19.10953938,203.53,203.45,19.10953938]
[1739158442022,13.41184853,203.6,203.43,0.73710896]
[1739158442224,19.10953938,203.57,203.44,3.9323]
[1739158442416,19.10953938,203.61,203.53,19.10953938]
[1739158442623,1.0,203.7,203.55,19.10953938]
[1739158442624,19.10953938,203.63,203.55,19.10953938]
[1739158442820,19.10953938,203.65,203.6,20.0]
[1739158443148,9.8153,203.77,203.6,20.0]
[1739158443149,19.10953938,203.67,203.6,20.0]
[1739158443320,4.9264,203.75,203.61,19.10953938]
[1739158443321,19.10953938,203.69,203.61,19.10953938]
[1739158443517,4.9264,203.75,203.65,19.10953938]
[1739158443518,19.10953938,203.74,203.65,19.10953938]
[1739158443853,1.0,203.79,203.6,39.10953938]
[1739158443854,19.10953938,203.76,203.67,19.10953938]
[1739158444036,19.10953938,203.72,203.63,19.10953938]
[1739158444244,19.10953938,203.7,203.64,3.9285]
[1739158444454,19.10953938,203.72,203.67,20.0]
[1739158444630,19.10953938,203.78,203.73,20.0]
[1739158444829,19.10953938,203.83,203.75,20.0]
[1739158445034,19.10953938,203.83,203.76,19.10953938]
[1739158445216,19.10953938,203.87,203.8,19.10953938]
[1739158445421,19.10953938,203.87,203.78,19.10953938]
[1739158445625,19.10953938,203.85,203.76,19.10953938]
[1739158445844,19.10953938,203.83,203.74,19.10953938]
[1739158446047,19.10953938,203.89,203.81,20.0]
[1739158446224,19.10953938,203.89,203.82,3.925]
[1739158446422,19.10953938,203.89,203.83,20.0]
[1739158446648,19.10953938,203.91,203.84,19.10953938]
[1739158446823,19.10953938,203.91,203.81,4.66071667]
[1739158446824,19.10953938,203.89,203.81,4.66071667]
[1739158447155,5.92,204.04,203.77,0.12549]
[1739158447156,19.10953938,203.85,203.78,20.0]
[1739158447322,3.9228,203.94,203.77,19.10953938]
[1739158447323,19.10953938,203.91,203.86,20.0]
[1739158447523,19.10953938,203.91,203.83,19.10953938]
[1739158447734,19.10953938,203.93,203.85,19.10953938]
[1739158447938,19.10953938,203.95,203.87,19.10953938]
[1739158448147,19.10953938,203.95,203.81,29.74]
[1739158448148,19.10953938,204.0,203.92,19.10953938]
[1739158448449,19.10953938,204.0,203.93,0.73534175]
[1739158448656,19.10953938,203.98,203.9,19.84488113]
[1739158448856,4.0761,204.08,203.9,19.84488113]
[1739158448857,19.10953938,204.0,203.92,19.10953938]
[1739158449030,19.10953938,204.0,203.9,19.84488554]
[1739158449356,19.10953938,204.04,203.96,19.10953938]
[1739158449538,0.156,204.08,203.9,23.76818554]
[1739158449539,19.10953938,204.06,203.98,19.10953938]
[1739158449733,19.26553938,204.08,204.0,19.10953938]
[1739158449943,19.10953938,204.06,203.99,19.10953938]
[1739158450235,19.10953938,204.04,203.97,19.10953938]
[1739158450554,19.10953938,204.0,203.91,19.84468443]
[1739158450940,19.10953938,204.0,203.94,20.0]
[1739158451350,19.10953938,204.0,203.91,19.84468443]
[1739158451557,19.10953938,204.0,203.93,19.10953938]
[1739158451729,4.0761,204.08,203.97,19.10953938]
[1739158451730,19.10953938,204.04,203.97,19.10953938]
[1739158451932,19.10953938,204.06,203.97,19.10953938]
[1739158452265,19.10953938,204.02,203.95,19.10953938]
[1739158452557,19.10953938,203.98,203.95,20.0]
[1739158452752,19.10953938,203.96,203.88,19.10953938]
[1739158452940,19.10953938,203.98,203.91,20.0]
[1739158453142,19.10953938,204.0,203.92,19.84487684]
[1739158453349,0.0960597,203.93,203.92,19.84487684]
[1739158453745,0.0960597,203.93,203.92,20.73533746]
[1739158453954,0.0960597,203.93,203.92,20.0]
[1739158454160,0.0960597,203.93,203.89,0.73540183]
[1739158454453,19.10953938,203.91,203.84,0.73546473]
[1739158454762,19.10953938,203.89,203.84,4.65996473]
[1739158455058,0.0960597,203.93,203.85,20.0]
[1739158455275,0.0960597,203.93,203.86,0.73552419]
[1739158455553,0.0960597,203.93,203.9,20.0]
[1739158455753,0.0960597,203.93,203.85,0.73540431]
[1739158455960,0.0960597,203.93,203.8,23.03493938]
[1739158455961,19.10953938,203.88,203.8,23.03493938]
[1739158456140,19.10953938,203.86,203.78,19.84517251]
[1739158456340,19.10953938,203.82,203.78,0.73563313]
[1739158456555,19.10953938,203.8,203.77,7.66086207]
[1739158456759,19.10953938,203.8,203.72,19.84540517]
[1739158456957,2.05670878,203.78,203.72,0.73586579]
[1739158457161,19.10953938,203.76,203.69,7.66086207]
[1739158457351,19.10953938,203.74,203.69,7.66086207]
[1739158457549,19.10953938,203.82,203.72,19.10953938]
[1739158457739,1.0,203.91,203.72,19.10953938]
[1739158457740,19.10953938,203.88,203.81,39.10953938]
[1739158457934,19.10953938,203.88,203.82,0.73567382]
[1739158458154,19.10953938,203.86,203.77,19.10953938]
[1739158458331,19.10953938,203.8,203.73,23.03623938]
[1739158458531,19.10953938,203.74,203.66,0.73601061]
[1739158458758,1.0,203.8,203.62,23.77448034]
[1739158458759,19.10953938,203.7,203.62,23.77448034]
[1739158458948,32.84173938,203.9,203.62,0.73643415]
[1739158458949,8.0,203.84,203.62,0.73643415]
[1739158459276,19.10953938,203.75,203.66,19.10953938]
[1739158459450,19.10953938,203.79,203.72,19.10953938]
[1739158459636,19.10953938,203.79,203.68,13.41184853]
[1739158459637,19.10953938,203.83,203.76,23.03563938]
[1739158459831,19.10953938,203.85,203.79,20.0]
[1739158460164,9.90618094,203.94,203.79,19.10953938]
[1739158460165,19.10953938,203.86,203.79,19.10953938]
[1739158460348,19.10953938,203.86,203.77,19.8453775]
[1739158460544,19.10953938,203.88,203.79,19.10953938]
[1739158460752,19.10953938,203.92,203.85,19.10953938]
[1739158461064,0.1260597,203.93,203.81,19.84510882]
[1739158461065,19.10953938,203.88,203.81,19.84510882]
[1739158461268,19.10953938,203.88,203.76,3.9261]
[1739158461269,19.10953938,203.86,203.82,20.0]
[1739158461433,19.10953938,203.92,203.86,20.0]
[1739158461639,0.1260597,203.93,203.87,0.73554927]
[1739158461870,0.1260597,203.93,203.92,20.0]
[1739158462030,0.1260597,203.93,203.9,0.73533954]
[1739158462230,19.10953938,203.92,203.86,0.73545316]
[1739158462462,0.1260597,203.93,203.92,20.0]
[1739158462644,0.1260597,203.93,203.91,19.10953938]
[1739158462846,0.1260597,203.93,203.89,19.10953938]
[1739158463173,0.1260597,203.93,203.87,19.10953938]
[1739158463460,0.1260597,203.93,203.92,20.0]
[1739158463668,0.1260597,203.93,203.92,20.7353025]
[1739158463961,5.97e-05,203.93,203.92,18.19574103]
[1739158464266,0.08828656,203.98,203.95,0.25098]
[1739158464267,5.94e-05,203.97,203.95,0.25098]
[1739158464471,4.596e-05,203.98,203.97,0.25098]
[1739158464647,19.10953938,204.08,203.96,33.50734492]
[1739158464648,8.868e-05,204.01,203.99,20.0]
[1739158465162,8.868e-05,204.01,203.99,0.73502157]
[1739158465381,8.868e-05,204.01,203.97,0.73519241]
[1739158465538,8.868e-05,204.01,203.99,19.10953938]
[1739158465868,8.868e-05,204.01,204.0,18.19377573]
[1739158466235,8.868e-05,204.01,204.0,3.9215]
[1739158466435,8.868e-05,204.01,203.96,9.8054]
[1739158466673,8.868e-05,204.01,203.96,3.9223]
[1739158466878,8.868e-05,204.01,203.96,13.7281]
[1739158467167,19.10953938,204.05,203.97,19.84477395]
[1739158467369,19.10953938,204.09,204.05,20.0]
[1739158467573,19.10953938,204.11,204.05,20.0]
[1739158467946,0.156,204.1,204.05,29.74]
[1739158468147,0.156,204.1,204.08,20.0]
[1739158468352,0.156,204.1,204.01,0.12549]
[1739158468353,0.156,204.1,204.02,48.84953938]
[1739158468756,19.10953938,204.09,204.0,19.10953938]
[1739158468954,19.10953938,204.07,203.98,19.84465465]
[1739158469277,19.10953938,204.04,203.97,19.10953938]
[1739158469464,19.10953938,204.06,203.97,48.84953938]
[1739158469676,19.10953938,204.01,203.93,19.10953938]
[1739158469981,0.03,204.01,203.97,19.10953938]
[1739158470468,0.03,204.01,203.99,48.84953938]
[1739158470667,0.03,204.01,203.98,19.10953938]
[1739158470878,0.03,204.01,203.99,0.73512493]
[1739158471060,0.03,204.01,204.0,20.0]
[1739158471266,0.03,204.01,203.98,19.10953938]
[1739158471454,0.03,204.01,203.96,29.74]
[1739158471763,0.03,204.01,203.95,19.84473247]
[1739158471974,19.10953938,204.0,203.93,19.84473247]
[1739158472160,19.10953938,203.96,203.86,0.73529292]
[1739158472347,19.10953938,203.92,203.84,19.10953938]
[1739158473357,0.10471602,203.85,203.8,19.10953938]
[1739158473561,0.10471602,203.85,203.78,19.90829884]
[1739158473781,19.10953938,203.84,203.78,0.063]
[1739158473954,0.10471602,203.85,203.82,19.10953938]
[1739158474158,4.02911602,203.85,203.78,0.063]
[1739158474357,19.10953938,203.84,203.78,0.063]
[1739158474562,19.10953938,203.79,203.78,0.063]
[1739158475083,19.10953938,203.79,203.78,0.0001]
[1739158475084,21.36051938,203.79,203.78,0.0001]
[1739158475253,1.0,203.75,203.61,19.10953938]
[1739158475454,19.10953938,203.7,203.63,19.10953938]
[1739158475654,1.12549,203.76,203.63,18.82079687]
[1739158475950,1.12549,203.76,203.6,0.73638923]
[1739158475951,1.0,203.73,203.61,18.82079687]
[1739158476261,0.12549,203.69,203.55,18.82079687]
[1739158476468,1.0,203.71,203.52,7.66086207]
[1739158476469,1.0,203.67,203.53,18.88379687]
[1739158476677,2.0,203.7,203.55,18.82079687]
[1739158476858,13.41184853,203.73,203.59,18.82079687]
[1739158476859,1.0,203.72,203.59,18.82079687]
[1739158477054,0.12549,203.71,203.59,18.82079687]
[1739158477253,0.12549,203.71,203.53,18.88379687]
[1739158477254,0.12549,203.67,203.53,18.88379687]
[1739158477455,1.0,203.63,203.53,0.063]
[1739158477658,13.66282853,203.63,203.53,0.063]
[1739158477864,5.9288,203.62,203.53,0.063]
[1739158478059,14.751,203.62,203.53,0.063]
[1739158478285,1.0,203.61,203.53,0.063]
[1739158478461,1.0,203.58,203.53,0.063]
[1739158478668,1.0,203.6,203.53,0.063]
[1739158478855,13.751,203.62,203.53,0.063]
[1739158479053,3.9288,203.62,203.53,0.063]
[1739158479259,3.9281,203.66,203.56,18.82079687]
[1739158479690,0.12549,203.63,203.53,0.063]
[1739158479988,3.929,203.61,203.53,0.063]
[1739158480166,7.2721,203.7,203.55,18.82079687]
[1739158480487,3.9271,203.71,203.59,18.82079687]
[1739158480658,3.9271,203.71,203.58,18.82079687]
[1739158480862,3.9271,203.71,203.6,18.82079687]
[1739158481177,3.9271,203.71,203.58,18.82079687]
[1739158481373,1.0,203.7,203.56,18.82079687]
[1739158481574,0.12549,203.67,203.54,18.82079687]